[Event "16th Deltalift Open 2019"]
[Site "Halmstad"]
[Date "2019.05.30"]
[Round "1.12"]
[White "Lindquist, Per"]
[Black "Bellon Lopez, Juan Manuel"]
[Result "0-1"]
[ECO "A50"]
[WhiteElo "1922"]
[BlackElo "2345"]
[Annotator "ChessBase"]
[PlyCount "68"]
[EventDate "2019.05.30"]
[EventType "swiss"]
[EventCountry "SWE"]
[SourceTitle "playchess.com"]
[Source "ChessBase"]
[SourceQuality "1"]
[TimeControl "1800+12"]

1. d4 {[%emt 0:00:00]} Nf6 {[%emt 0:00:00]} 2. c4 {[%emt 0:00:00]} a6 {[%emt 0:00:00]} 3. g3 {[%emt 0:00:33]} c5 {[%emt 0:00:03]} 4. d5 {[%emt 0:01:07]} b5 {[%emt 0:00:11]} 5. cxb5 {[%emt 0:01:25]} axb5 {[%emt 0:00:09]} 6. Bg2 {[%emt 0:00:08]} d6 {[%emt 0:00:12]} 7. e4 {[%emt 0:01:13]} g6 {[%emt 0:00:21]} 8. f4 {[%emt 0:01:02]} Bb7 {[%emt 0:07:17]} 9. Qe2 {[%emt 0:01:24]} Nbd7 {[%emt 0:02:12]} 10. Nf3 {[%emt 0:02:54]} Bg7 {[%emt 0:00:17]} 11. O-O {[%emt 0:00:47]} O-O {[%emt 0:00:04]} 12. Re1 {[%emt 0:00:56]} c4 {[%emt 0:00:59]} 13. Kh1 {[%emt 0:00:54]} Nc5 {[%emt 0:00:09]} 14. Nc3 {[%emt 0:04:35]} b4 {[%emt 0:01:37]} 15. Nb5 {[%emt 0:00:50]} Nfxe4 {[%emt 0:00:55]} 16. Qxc4 {[%emt 0:00:28]} Nf2+ {[%emt 0:01:41]} 17. Kg1 {[%emt 0:00:01]} Nfd3 {[%emt 0:00:03]} 18. Rd1 {[%emt 0:01:00]} Bxb2 {[%emt 0:01:07]} 19. Be3 {[%emt 0:01:51]} Bxa1 {[%emt 0:00:15]} 20. Rxa1 {[%emt 0:00:01]} b3 {[%emt 0:01:25]} 21. f5 {[%emt 0:04:02]} Rxa2 {[%emt 0:00:54]} 22. Rxa2 bxa2 {[%emt 0:00:02]} 23. Qxa2 {[%emt 0:01:57]} Qa8 {[%emt 0:00:35]} 24. Qd2 {[%emt 0:01:21]} Bxd5 {[%emt 0:01:38]} 25. Nbd4 {[%emt 0:01:43]} e5 {[%emt 0:01:27]} 26. f6 {[%emt 0:02:23]} exd4 {[%emt 0:02:22]} 27. Nxd4 {[%emt 0:01:32]} Bxg2 {[%emt 0:01:12]} 28. Nf5 {[%emt 0:00:09]} Qa1+ {[%emt 0:01:12]} 29. Kxg2 {[%emt 0:00:09]} Qxf6 {[%emt 0:01:21]} 30. Nh6+ {[%emt 0:00:55]} Kh8 {[%emt 0:01:00]} 31. Ng4 {[%emt 0:00:20]} Qf5 {[%emt 0:00:46]} 32. Qc3+ {[%emt 0:00:29]} f6 {[%emt 0:00:11]} 33. Bd4 {[%emt 0:00:13]} Qxg4 {[%emt 0:00:25]} 34. Bxf6+ {[%emt 0:00:01]} Kg8 {[%emt 0:00:19]} 0-1

[Event "16th Deltalift Open 2019"]
[Site "Halmstad"]
[Date "2019.05.30"]
[Round "1.13"]
[White "Olund, Joar"]
[Black "Alfven, Jorgen"]
[Result "1-0"]
[ECO "D11"]
[WhiteElo "2328"]
[BlackElo "1912"]
[Annotator "ChessBase"]
[PlyCount "55"]
[EventDate "2019.05.30"]
[EventType "swiss"]
[EventCountry "SWE"]
[SourceTitle "playchess.com"]
[Source "ChessBase"]
[SourceQuality "1"]
[TimeControl "1800+12"]

1. d4 {[%emt 0:00:00]} d5 {[%emt 0:00:01]} 2. c4 {[%emt 0:00:00]} c6 {[%emt 0:00:05]} 3. Nf3 {[%emt 0:00:02]} Nf6 {[%emt 0:00:06]} 4. e3 {[%emt 0:00:09]} e6 {[%emt 0:01:51]} 5. b3 {[%emt 0:00:54]} Bb4+ {[%emt 0:00:17]} 6. Nbd2 {[%emt 0:01:18]} O-O {[%emt 0:01:40]} 7. Bd3 {[%emt 0:00:49]} Nbd7 {[%emt 0:01:45]} 8. O-O {[%emt 0:00:18]} Bxd2 {[%emt 0:04:58]} 9. Nxd2 {[%emt 0:00:32]} e5 {[%emt 0:00:27]} 10. cxd5 {[%emt 0:02:39]} cxd5 {[%emt 0:06:45]} 11. dxe5 {[%emt 0:00:15]} Nxe5 {[%emt 0:00:10]} 12. Be2 {[%emt 0:00:02]} Bf5 {[%emt 0:01:54]} 13. Nf3 {[%emt 0:06:03]} Nxf3+ {[%emt 0:02:21]} 14. Bxf3 {[%emt 0:00:36]} Qd6 {[%emt 0:05:44]} 15. Bb2 {[%emt 0:00:35]} Rfd8 {[%emt 0:00:01]} 16. Rc1 {[%emt 0:01:31]} Be4 {[%emt 0:00:32]} 17. Bxe4 {[%emt 0:00:53]} Nxe4 {[%emt 0:01:09]} 18. Qd4 {[%emt 0:00:13]} Qg6 {[%emt 0:00:10]} 19. Rc7 {[%emt 0:04:31]} b6 {[%emt 0:00:03]} 20. Rfc1 {[%emt 0:01:27]} Nc5 {[%emt 0:00:12]} 21. Qc3 {[%emt 0:02:30]} Ne6 {[%emt 0:01:27]} 22. Rc6 {[%emt 0:00:19]} Rd7 {[%emt 0:01:56]} 23. Qe5 {[%emt 0:01:45]} Rad8 {[%emt 0:00:13]} 24. Bd4 {[%emt 0:04:38]} h6 {[%emt 0:00:13]} 25. h3 {[%emt 0:00:34]} Qg5 {[%emt 0:00:23]} 26. Qxg5 {[%emt 0:00:30]} hxg5 {[%emt 0:00:02]} 27. Kf1 {[%emt 0:00:17]} f6 {[%emt 0:00:01]} 28. Rxe6 {[%emt 0:00:13]} 1-0

[Event "16th Deltalift Open 2019"]
[Site "Halmstad"]
[Date "2019.05.30"]
[Round "1.14"]
[White "Andersson, Kjell-Ake"]
[Black "Kucuksari, Kaan"]
[Result "0-1"]
[ECO "E19"]
[WhiteElo "1910"]
[BlackElo "2320"]
[Annotator "ChessBase"]
[PlyCount "82"]
[EventDate "2019.05.30"]
[EventType "swiss"]
[EventCountry "SWE"]
[SourceTitle "playchess.com"]
[Source "ChessBase"]
[SourceQuality "1"]
[TimeControl "1800+12"]

1. Nf3 {[%emt 0:00:02]} Nf6 {[%emt 0:00:00]} 2. c4 {[%emt 0:00:15]} b6 {[%emt 0:00:00]} 3. g3 {[%emt 0:00:48]} Bb7 {[%emt 0:00:00]} 4. Bg2 {[%emt 0:00:10]} e6 {[%emt 0:00:01]} 5. O-O {[%emt 0:00:24]} Be7 {[%emt 0:00:02]} 6. Nc3 {[%emt 0:00:24]} O-O {[%emt 0:00:09]} 7. d4 {[%emt 0:00:30]} Ne4 {[%emt 0:00:05]} 8. Qc2 {[%emt 0:00:13]} Nxc3 {[%emt 0:00:03]} 9. Qxc3 {[%emt 0:00:03]} d6 {[%emt 0:00:12]} 10. Qc2 {[%emt 0:00:48]} f5 {[%emt 0:00:06]} 11. b3 {[%emt 0:01:28]} Be4 {[%emt 0:00:28]} 12. Qd2 {[%emt 0:00:29]} Bf6 {[%emt 0:00:09]} 13. Bb2 {[%emt 0:00:15]} Nd7 {[%emt 0:00:02]} 14. Rad1 {[%emt 0:01:41]} Qe7 {[%emt 0:00:03]} 15. Ne1 {[%emt 0:00:40]} Rf7 {[%emt 0:02:20]} 16. Nd3 {[%emt 0:01:56]} Raf8 {[%emt 0:00:41]} 17. f3 {[%emt 0:02:19]} Bb7 {[%emt 0:01:03]} 18. e4 {[%emt 0:00:55]} fxe4 {[%emt 0:00:45]} 19. fxe4 {[%emt 0:00:02]} e5 {[%emt 0:00:01]} 20. d5 {[%emt 0:00:44]} Nc5 {[%emt 0:00:10]} 21. Nxc5 {[%emt 0:00:31]} bxc5 {[%emt 0:00:02]} 22. Bc1 {[%emt 0:02:17]} Bc8 {[%emt 0:02:23]} 23. a3 {[%emt 0:01:32]} h6 {[%emt 0:00:19]} 24. b4 {[%emt 0:01:23]} Bg4 {[%emt 0:00:26]} 25. Rde1 {[%emt 0:00:36]} Bg5 {[%emt 0:00:02]} 26. Qc3 {[%emt 0:01:32]} Rxf1+ {[%emt 0:00:15]} 27. Rxf1 {[%emt 0:01:23]} Rxf1+ {[%emt 0:00:02]} 28. Bxf1 {[%emt 0:00:37]} Qf6 {[%emt 0:05:35]} 29. bxc5 {[%emt 0:03:12]} dxc5 {[%emt 0:01:07]} 30. Bb2 {[%emt 0:01:49]} h5 {[%emt 0:04:11]} 31. Bg2 {[%emt 0:03:26]} h4 {[%emt 0:01:26]} 32. Qxe5 {[%emt 0:01:00]} Be3+ {[%emt 0:00:25]} 33. Kh1 {[%emt 0:00:01]} Qxe5 {[%emt 0:02:33]} 34. Bxe5 {[%emt 0:00:03]} h3 {[%emt 0:00:02]} 35. Bxc7 {[%emt 0:00:17]} hxg2+ {[%emt 0:00:43]} 36. Kxg2 {[%emt 0:00:02]} Be2 {[%emt 0:00:01]} 37. d6 {[%emt 0:00:42]} Bg4 {[%emt 0:00:00]} 38. h3 {[%emt 0:00:13]} Bd7 {[%emt 0:00:24]} 39. Bb8 {[%emt 0:00:14]} a5 {[%emt 0:00:04]} 40. e5 {[%emt 0:00:19]} Kf7 {[%emt 0:03:17]} 41. Kf3 {[%emt 0:00:11]} Bc1 {[%emt 0:00:02]} 0-1

[Event "16th Deltalift Open 2019"]
[Site "Halmstad"]
[Date "2019.05.30"]
[Round "1.15"]
[White "Ziegler, Ari"]
[Black "Olsson, Tord"]
[Result "1-0"]
[ECO "B43"]
[WhiteElo "2300"]
[BlackElo "1908"]
[Annotator "ChessBase"]
[PlyCount "37"]
[EventDate "2019.05.30"]
[EventType "swiss"]
[EventCountry "SWE"]
[SourceTitle "playchess.com"]
[Source "ChessBase"]
[SourceQuality "1"]
[TimeControl "1800+12"]

1. e4 {[%emt 0:00:00]} c5 {[%emt 0:00:00]} 2. Nf3 {[%emt 0:00:00]} e6 {[%emt 0:00:00]} 3. d4 {[%emt 0:00:00]} cxd4 {[%emt 0:00:00]} 4. Nxd4 {[%emt 0:00:00]} a6 {[%emt 0:00:00]} 5. Nc3 {[%emt 0:00:00]} Qc7 {[%emt 0:00:00]} 6. g3 {[%emt 0:00:00]} b5 {[%emt 0:00:10]} 7. Bg2 {[%emt 0:00:03]} Bb7 {[%emt 0:00:02]} 8. O-O {[%emt 0:00:09]} Ne7 {[%emt 0:00:30]} 9. Ndxb5 {[%emt 0:00:29]} axb5 {[%emt 0:00:59]} 10. Nxb5 {[%emt 0:00:03]} Qc6 {[%emt 0:04:21]} 11. Nd6+ {[%emt 0:00:09]} Kd8 {[%emt 0:00:01]} 12. Nxf7+ {[%emt 0:00:07]} Ke8 {[%emt 0:00:25]} 13. Nxh8 {[%emt 0:00:11]} g6 {[%emt 0:03:01]} 14. Qf3 {[%emt 0:00:48]} Nf5 {[%emt 0:00:52]} 15. g4 {[%emt 0:02:03]} Bg7 {[%emt 0:00:17]} 16. gxf5 {[%emt 0:00:22]} exf5 {[%emt 0:03:33]} 17. Qb3 {[%emt 0:01:23]} d5 18. exd5 {[%emt 0:00:27]} Qd7 {[%emt 0:03:53]} 19. Re1+ {[%emt 0:00:13]} 1-0

[Event "16th Deltalift Open 2019"]
[Site "Halmstad"]
[Date "2019.05.30"]
[Round "1.16"]
[White "Wiklund, Johan"]
[Black "Lindgren, Fredrik"]
[Result "0-1"]
[ECO "D02"]
[WhiteElo "1902"]
[BlackElo "2278"]
[Annotator "ChessBase"]
[PlyCount "80"]
[EventDate "2019.05.30"]
[EventType "swiss"]
[EventCountry "SWE"]
[SourceTitle "playchess.com"]
[Source "ChessBase"]
[SourceQuality "1"]
[TimeControl "1800+12"]

1. Nf3 {[%emt 0:00:00]} d5 {[%emt 0:00:07]} 2. d4 {[%emt 0:00:00]} Nf6 {[%emt 0:00:13]} 3. c4 {[%emt 0:00:09]} g6 {[%emt 0:00:29]} 4. Bf4 {[%emt 0:00:39]} Bg7 {[%emt 0:00:02]} 5. h3 {[%emt 0:00:18]} O-O {[%emt 0:00:04]} 6. e3 {[%emt 0:00:08]} c5 {[%emt 0:00:06]} 7. Nc3 {[%emt 0:00:29]} cxd4 {[%emt 0:00:17]} 8. exd4 {[%emt 0:00:33]} Nc6 {[%emt 0:00:18]} 9. Be2 {[%emt 0:00:32]} dxc4 {[%emt 0:06:26]} 10. Bxc4 {[%emt 0:00:35]} b6 {[%emt 0:00:03]} 11. O-O {[%emt 0:01:10]} Bb7 {[%emt 0:00:02]} 12. Re1 {[%emt 0:00:58]} Rc8 {[%emt 0:00:03]} 13. Be2 {[%emt 0:00:48]} Nd5 {[%emt 0:00:53]} 14. Bg3 {[%emt 0:00:41]} Nxc3 {[%emt 0:05:00]} 15. bxc3 {[%emt 0:00:09]} Na5 {[%emt 0:00:03]} 16. Rc1 {[%emt 0:04:01]} Qd5 {[%emt 0:01:13]} 17. Qa4 {[%emt 0:01:08]} Bh6 {[%emt 0:06:59]} 18. c4 {[%emt 0:05:53]} Qd8 {[%emt 0:01:05]} 19. Rcd1 {[%emt 0:01:25]} Qe8 {[%emt 0:03:34]} 20. Qb4 {[%emt 0:01:28]} Qd8 {[%emt 0:01:33]} 21. d5 {[%emt 0:01:14]} Re8 {[%emt 0:00:37]} 22. Nd4 {[%emt 0:00:40]} Bf8 {[%emt 0:00:26]} 23. Qa4 {[%emt 0:02:01]} Bg7 {[%emt 0:01:00]} 24. Bf1 {[%emt 0:00:31]} Rc5 {[%emt 0:01:25]} 25. Bd6 {[%emt 0:01:28]} Qxd6 {[%emt 0:01:05]} 26. Qxe8+ {[%emt 0:00:18]} Bf8 {[%emt 0:00:01]} 27. Nb5 {[%emt 0:01:17]} Qf6 {[%emt 0:01:03]} 28. d6 {[%emt 0:01:06]} exd6 {[%emt 0:00:06]} 29. Rxd6 {[%emt 0:00:31]} Qg7 {[%emt 0:00:39]} 30. Nd4 {[%emt 0:02:39]} Rc8 {[%emt 0:00:37]} 31. Rd8 {[%emt 0:00:34]} Rxd8 {[%emt 0:00:01]} 32. Qxd8 {[%emt 0:00:02]} Nc6 {[%emt 0:00:01]} 33. Nxc6 {[%emt 0:00:20]} Bxc6 {[%emt 0:00:01]} 34. Qc7 {[%emt 0:00:10]} Qf6 {[%emt 0:00:34]} 35. Qxa7 {[%emt 0:01:09]} Bc5 {[%emt 0:00:02]} 36. Qb8+ {[%emt 0:00:01]} Kg7 {[%emt 0:00:01]} 37. Qg3 {[%emt 0:00:01]} Bd4 {[%emt 0:00:16]} 38. a3 {[%emt 0:00:24]} h5 {[%emt 0:00:01]} 39. Rd1 {[%emt 0:00:25]} h4 {[%emt 0:00:15]} 40. Qg4 {[%emt 0:00:45]} Qxf2+ {[%emt 0:00:09]} 0-1

[Event "16th Deltalift Open 2019"]
[Site "Halmstad"]
[Date "2019.05.30"]
[Round "1.17"]
[White "Silseth, Simon"]
[Black "Sjodahl, Olof"]
[Result "1-0"]
[ECO "C24"]
[WhiteElo "2268"]
[BlackElo "1901"]
[Annotator "ChessBase"]
[PlyCount "45"]
[EventDate "2019.05.30"]
[EventType "swiss"]
[EventCountry "SWE"]
[SourceTitle "playchess.com"]
[Source "ChessBase"]
[SourceQuality "1"]
[TimeControl "1800+12"]

1. e4 {[%emt 0:00:00]} e5 {[%emt 0:00:00]} 2. Bc4 {[%emt 0:00:00]} Nf6 {[%emt 0:00:08]} 3. d3 {[%emt 0:00:02]} h6 {[%emt 0:00:39]} 4. Nc3 {[%emt 0:00:08]} c6 {[%emt 0:01:19]} 5. Nf3 {[%emt 0:00:27]} d6 {[%emt 0:01:25]} 6. h3 {[%emt 0:00:15]} g6 {[%emt 0:00:58]} 7. d4 {[%emt 0:01:36]} Nbd7 {[%emt 0:00:48]} 8. dxe5 {[%emt 0:00:33]} dxe5 {[%emt 0:02:30]} 9. a4 {[%emt 0:04:01]} Qc7 {[%emt 0:01:46]} 10. Be3 {[%emt 0:00:23]} Bg7 {[%emt 0:00:14]} 11. Qd2 {[%emt 0:00:21]} b6 {[%emt 0:05:24]} 12. O-O {[%emt 0:01:17]} Nf8 {[%emt 0:02:01]} 13. a5 {[%emt 0:01:49]} b5 {[%emt 0:05:16]} 14. Bxb5 {[%emt 0:00:39]} Rb8 {[%emt 0:01:57]} 15. Ba4 {[%emt 0:00:55]} Rxb2 {[%emt 0:02:02]} 16. Nd5 {[%emt 0:01:06]} Nxd5 {[%emt 0:00:40]} 17. exd5 {[%emt 0:00:18]} e4 {[%emt 0:02:12]} 18. Bd4 {[%emt 0:01:26]} Bxd4 {[%emt 0:01:56]} 19. Qxd4 {[%emt 0:00:32]} exf3 {[%emt 0:00:20]} 20. Rfe1+ {[%emt 0:00:16]} Kd8 {[%emt 0:00:57]} 21. dxc6+ {[%emt 0:00:26]} Bd7 {[%emt 0:00:28]} 22. cxd7 {[%emt 0:00:26]} fxg2 {[%emt 0:00:40]} 23. Re8# 1-0

[Event "16th Deltalift Open 2019"]
[Site "Halmstad"]
[Date "2019.05.30"]
[Round "1.18"]
[White "Ljung, Rickard"]
[Black "Nyander, Joakim"]
[Result "0-1"]
[ECO "A46"]
[WhiteElo "1899"]
[BlackElo "2235"]
[Annotator "ChessBase"]
[PlyCount "82"]
[EventDate "2019.05.30"]
[EventType "swiss"]
[EventCountry "SWE"]
[SourceTitle "playchess.com"]
[Source "ChessBase"]
[SourceQuality "1"]
[TimeControl "1800+12"]

1. d4 {[%emt 0:00:00]} Nf6 {[%emt 0:00:03]} 2. Nf3 {[%emt 0:00:03]} c5 {[%emt 0:00:20]} 3. e3 {[%emt 0:01:45]} e6 {[%emt 0:00:23]} 4. Nbd2 {[%emt 0:00:48]} b6 {[%emt 0:00:34]} 5. b3 {[%emt 0:01:23]} Be7 {[%emt 0:00:25]} 6. Bb2 {[%emt 0:00:12]} O-O {[%emt 0:00:28]} 7. Bd3 {[%emt 0:00:26]} d6 {[%emt 0:01:18]} 8. g4 {[%emt 0:04:28]} Nc6 {[%emt 0:02:38]} 9. g5 {[%emt 0:04:12]} Nd7 {[%emt 0:01:25]} 10. Rg1 {[%emt 0:03:26]} Nb4 {[%emt 0:06:39]} 11. Ne4 {[%emt 0:03:28]} d5 {[%emt 0:05:52]} 12. Ng3 {[%emt 0:02:43]} Nxd3+ {[%emt 0:01:35]} 13. Qxd3 {[%emt 0:00:09]} c4 {[%emt 0:00:34]} 14. bxc4 {[%emt 0:01:57]} Ba6 {[%emt 0:00:28]} 15. Nd2 {[%emt 0:01:14]} Rc8 {[%emt 0:00:43]} 16. Qe2 {[%emt 0:02:16]} Bxc4 {[%emt 0:02:55]} 17. Nxc4 {[%emt 0:00:57]} Rxc4 {[%emt 0:00:04]} 18. c3 {[%emt 0:00:13]} b5 {[%emt 0:00:33]} 19. a3 {[%emt 0:00:20]} Nb6 {[%emt 0:01:41]} 20. Qd3 {[%emt 0:01:07]} Na4 {[%emt 0:00:33]} 21. Rb1 {[%emt 0:00:11]} Qa5 {[%emt 0:01:04]} 22. Ne2 {[%emt 0:00:42]} Rfc8 {[%emt 0:00:50]} 23. Rg3 {[%emt 0:01:01]} Nxb2 {[%emt 0:01:31]} 24. Rxb2 {[%emt 0:00:05]} Bxa3 {[%emt 0:00:03]} 25. Rb1 {[%emt 0:00:12]} b4 {[%emt 0:00:25]} 26. cxb4 {[%emt 0:00:19]} Bxb4+ {[%emt 0:00:02]} 27. Kf1 {[%emt 0:00:01]} Qa2 {[%emt 0:00:21]} 28. e4 {[%emt 0:01:22]} a5 {[%emt 0:00:15]} 29. e5 {[%emt 0:00:31]} Qc2 {[%emt 0:00:11]} 30. Qxc2 {[%emt 0:00:14]} Rxc2 {[%emt 0:00:01]} 31. Rd3 {[%emt 0:00:11]} g6 {[%emt 0:00:15]} 32. h4 {[%emt 0:00:01]} Kf8 {[%emt 0:00:04]} 33. Nf4 {[%emt 0:00:03]} Ke7 {[%emt 0:00:07]} 34. h5 {[%emt 0:00:00]} R8c4 {[%emt 0:00:23]} 35. hxg6 {[%emt 0:00:05]} hxg6 {[%emt 0:00:01]} 36. Rbd1 {[%emt 0:00:04]} a4 {[%emt 0:00:10]} 37. Rh3 {[%emt 0:00:04]} Bd2 {[%emt 0:00:13]} 38. Nxg6+ {[%emt 0:00:14]} fxg6 {[%emt 0:00:06]} 39. Rh7+ {[%emt 0:00:01]} Kf8 {[%emt 0:00:06]} 40. Rb1 {[%emt 0:00:08]} Rc1+ {[%emt 0:00:04]} 41. Rxc1 {[%emt 0:00:02]} Rxc1+ {[%emt 0:00:05]} 0-1

[Event "16th Deltalift Open 2019"]
[Site "Halmstad"]
[Date "2019.05.30"]
[Round "1.19"]
[White "Johnson, Daniel"]
[Black "Lesner, Joen"]
[Result "1-0"]
[ECO "E18"]
[WhiteElo "2233"]
[BlackElo "1886"]
[Annotator "ChessBase"]
[PlyCount "83"]
[EventDate "2019.05.30"]
[EventType "swiss"]
[EventCountry "SWE"]
[SourceTitle "playchess.com"]
[Source "ChessBase"]
[SourceQuality "1"]
[TimeControl "1800+12"]

1. d4 {[%emt 0:00:09]} e6 {[%emt 0:00:00]} 2. c4 {[%emt 0:00:08]} b6 {[%emt 0:00:05]} 3. Nf3 {[%emt 0:00:15]} Bb7 {[%emt 0:00:05]} 4. g3 {[%emt 0:00:21]} Nf6 {[%emt 0:00:15]} 5. Bg2 {[%emt 0:00:27]} Be7 {[%emt 0:00:28]} 6. O-O {[%emt 0:00:13]} O-O {[%emt 0:00:12]} 7. Nc3 {[%emt 0:01:31]} d6 {[%emt 0:00:14]} 8. d5 {[%emt 0:05:52]} e5 {[%emt 0:00:49]} 9. Nh4 {[%emt 0:03:04]} Bc8 {[%emt 0:06:34]} 10. e4 {[%emt 0:00:28]} Ne8 {[%emt 0:04:28]} 11. Nf5 {[%emt 0:00:19]} g6 {[%emt 0:02:48]} 12. Nxe7+ {[%emt 0:03:49]} Qxe7 {[%emt 0:00:02]} 13. Qe2 {[%emt 0:00:02]} Nd7 {[%emt 0:03:08]} 14. Nb5 {[%emt 0:04:41]} Kg7 {[%emt 0:02:49]} 15. b3 {[%emt 0:01:06]} Ndf6 {[%emt 0:01:11]} 16. Bb2 {[%emt 0:00:59]} a6 {[%emt 0:01:16]} 17. Nc3 {[%emt 0:00:03]} Bg4 {[%emt 0:01:38]} 18. f3 {[%emt 0:00:04]} Bd7 {[%emt 0:00:12]} 19. a4 {[%emt 0:00:01]} h5 {[%emt 0:00:54]} 20. f4 {[%emt 0:01:02]} h4 {[%emt 0:00:34]} 21. f5 {[%emt 0:02:59]} hxg3 {[%emt 0:00:14]} 22. hxg3 {[%emt 0:00:27]} Nh5 {[%emt 0:00:39]} 23. Qf3 {[%emt 0:01:22]} Qg5 {[%emt 0:00:17]} 24. g4 {[%emt 0:00:26]} Nf4 {[%emt 0:00:58]} 25. Bc1 {[%emt 0:00:19]} Nf6 {[%emt 0:00:26]} 26. Bxf4 {[%emt 0:01:48]} exf4 {[%emt 0:00:01]} 27. Qxf4 {[%emt 0:00:38]} Qxg4 {[%emt 0:00:04]} 28. Qxg4 {[%emt 0:00:43]} Nxg4 {[%emt 0:00:02]} 29. Rf4 {[%emt 0:00:34]} Nf6 {[%emt 0:01:46]} 30. a5 {[%emt 0:00:27]} g5 {[%emt 0:00:31]} 31. Rf2 {[%emt 0:00:23]} Nh5 {[%emt 0:00:28]} 32. Rfa2 {[%emt 0:00:02]} Rfb8 {[%emt 0:01:09]} 33. Rb2 {[%emt 0:01:11]} Nf4 {[%emt 0:00:15]} 34. Bf1 {[%emt 0:00:02]} Rh8 {[%emt 0:00:13]} 35. axb6 {[%emt 0:00:23]} cxb6 {[%emt 0:00:01]} 36. Rba2 {[%emt 0:00:01]} a5 {[%emt 0:00:26]} 37. b4 {[%emt 0:00:13]} Nh3+ {[%emt 0:00:02]} 38. Kg2 {[%emt 0:00:09]} Nf4+ {[%emt 0:00:01]} 39. Kf3 {[%emt 0:00:01]} a4 {[%emt 0:01:25]} 40. Nxa4 {[%emt 0:00:50]} b5 {[%emt 0:00:46]} 41. Nb6 {[%emt 0:00:21]} Rxa2 {[%emt 0:00:22]} 42. Rxa2 {[%emt 0:00:02]} 1-0

[Event "16th Deltalift Open 2019"]
[Site "Halmstad"]
[Date "2019.05.30"]
[Round "1.20"]
[White "Engstrom, Ronald"]
[Black "Crevatin, Leo"]
[Result "0-1"]
[ECO "B10"]
[WhiteElo "1873"]
[BlackElo "2210"]
[Annotator "ChessBase"]
[PlyCount "63"]
[EventDate "2019.05.30"]
[EventType "swiss"]
[EventCountry "SWE"]
[SourceTitle "playchess.com"]
[Source "ChessBase"]
[SourceQuality "1"]
[TimeControl "1800+12"]

1. e4 {[%emt 0:00:03]} c6 {[%emt 0:00:00]} 2. Nf3 {[%emt 0:00:22]} d5 {[%emt 0:00:00]} 3. exd5 {[%emt 0:00:32]} cxd5 {[%emt 0:00:00]} 4. d4 {[%emt 0:00:26]} Nc6 {[%emt 0:00:00]} 5. Bf4 {[%emt 0:01:00]} Nf6 {[%emt 0:00:08]} 6. Nbd2 {[%emt 0:00:12]} Bf5 {[%emt 0:00:26]} 7. c3 {[%emt 0:02:09]} e6 {[%emt 0:00:08]} 8. Be2 {[%emt 0:00:57]} h6 {[%emt 0:00:04]} 9. h3 {[%emt 0:00:53]} Be7 {[%emt 0:00:05]} 10. O-O {[%emt 0:00:53]} O-O {[%emt 0:00:02]} 11. Ne5 {[%emt 0:01:48]} Nd7 {[%emt 0:01:49]} 12. Ndf3 {[%emt 0:00:43]} f6 {[%emt 0:00:07]} 13. Nxd7 {[%emt 0:01:12]} Qxd7 {[%emt 0:00:03]} 14. Bd3 {[%emt 0:00:31]} g5 {[%emt 0:01:09]} 15. Bg3 {[%emt 0:01:24]} Kg7 {[%emt 0:00:28]} 16. Re1 {[%emt 0:01:37]} Rae8 {[%emt 0:00:52]} 17. Qc2 {[%emt 0:00:28]} Rc8 {[%emt 0:02:29]} 18. Qd2 {[%emt 0:00:22]} Rfe8 {[%emt 0:00:14]} 19. Re2 {[%emt 0:00:23]} Bxd3 {[%emt 0:01:09]} 20. Qxd3 {[%emt 0:00:05]} Bd6 {[%emt 0:00:04]} 21. Bxd6 {[%emt 0:00:58]} Qxd6 {[%emt 0:00:01]} 22. Rae1 {[%emt 0:00:10]} Re7 {[%emt 0:00:03]} 23. a3 {[%emt 0:02:53]} Rce8 {[%emt 0:00:02]} 24. Qd2 {[%emt 0:00:57]} a6 {[%emt 0:02:05]} 25. Qc2 {[%emt 0:01:31]} e5 {[%emt 0:00:38]} 26. dxe5 {[%emt 0:03:13]} fxe5 {[%emt 0:00:02]} 27. Qd2 {[%emt 0:00:06]} Rd7 {[%emt 0:00:53]} 28. Re3 {[%emt 0:03:05]} Qf6 {[%emt 0:03:06]} 29. Nh2 {[%emt 0:02:50]} Qf4 {[%emt 0:05:02]} 30. R1e2 {[%emt 0:01:26]} d4 {[%emt 0:01:58]} 31. cxd4 {[%emt 0:01:25]} Nxd4 32. Re1 0-1

[Event "16th Deltalift Open 2019"]
[Site "Halmstad"]
[Date "2019.05.30"]
[Round "1.21"]
[White "Sjoberg, Isak"]
[Black "Haraldsson, Leif"]
[Result "1-0"]
[ECO "B00"]
[WhiteElo "2208"]
[BlackElo "1870"]
[Annotator "ChessBase"]
[PlyCount "75"]
[EventDate "2019.05.30"]
[EventType "swiss"]
[EventCountry "SWE"]
[SourceTitle "playchess.com"]
[Source "ChessBase"]
[SourceQuality "1"]
[TimeControl "1800+12"]

1. e4 {[%emt 0:00:00]} d6 {[%emt 0:00:00]} 2. d4 {[%emt 0:00:14]} Nd7 {[%emt 0:00:00]} 3. Nf3 {[%emt 0:00:15]} c6 {[%emt 0:00:20]} 4. Nc3 {[%emt 0:00:10]} Qc7 {[%emt 0:00:31]} 5. a4 {[%emt 0:00:19]} e5 {[%emt 0:00:57]} 6. Bc4 {[%emt 0:01:08]} h6 {[%emt 0:00:39]} 7. O-O {[%emt 0:01:00]} Be7 {[%emt 0:00:37]} 8. Be3 {[%emt 0:01:24]} a5 {[%emt 0:00:36]} 9. Qe2 {[%emt 0:01:30]} Nf8 {[%emt 0:00:23]} 10. Bb3 {[%emt 0:00:32]} g5 {[%emt 0:00:14]} 11. Qc4 {[%emt 0:00:45]} Rh7 {[%emt 0:04:43]} 12. dxe5 {[%emt 0:02:03]} Be6 {[%emt 0:03:00]} 13. Qe2 {[%emt 0:03:45]} dxe5 {[%emt 0:00:29]} 14. Rfd1 {[%emt 0:00:52]} g4 {[%emt 0:03:08]} 15. Nd2 {[%emt 0:00:09]} Nf6 {[%emt 0:00:16]} 16. Bxe6 {[%emt 0:05:15]} Nxe6 {[%emt 0:00:04]} 17. Nc4 {[%emt 0:00:10]} h5 {[%emt 0:01:03]} 18. Bb6 {[%emt 0:01:19]} Qb8 {[%emt 0:00:41]} 19. Ne3 {[%emt 0:00:11]} Ra6 {[%emt 0:01:24]} 20. Nc4 {[%emt 0:00:18]} Nd7 {[%emt 0:03:15]} 21. Bxa5 {[%emt 0:01:43]} Nd4 {[%emt 0:01:10]} 22. Qd3 {[%emt 0:00:28]} Nc5 {[%emt 0:00:21]} 23. Qd2 {[%emt 0:00:30]} Nce6 {[%emt 0:00:27]} 24. Bb6 {[%emt 0:00:37]} Bg5 {[%emt 0:00:07]} 25. Qd3 {[%emt 0:00:27]} Nf4 {[%emt 0:00:02]} 26. Qf1 {[%emt 0:00:12]} Nxc2 {[%emt 0:00:25]} 27. Rac1 {[%emt 0:01:15]} Nb4 {[%emt 0:00:17]} 28. a5 {[%emt 0:02:49]} Nbd3 {[%emt 0:02:08]} 29. Rc2 {[%emt 0:00:07]} h4 {[%emt 0:00:01]} 30. Rxd3 {[%emt 0:00:13]} Nxd3 {[%emt 0:00:01]} 31. Qxd3 {[%emt 0:00:02]} Ra8 {[%emt 0:01:57]} 32. Bc5 {[%emt 0:00:12]} Be7 {[%emt 0:01:36]} 33. Bxe7 {[%emt 0:01:16]} Kxe7 {[%emt 0:00:01]} 34. Rd2 {[%emt 0:00:08]} Qc7 {[%emt 0:00:12]} 35. Qe3 {[%emt 0:00:24]} Rg8 {[%emt 0:00:41]} 36. Qc5+ {[%emt 0:00:04]} Ke8 {[%emt 0:01:00]} 37. Nd6+ {[%emt 0:00:06]} Kf8 {[%emt 0:00:03]} 38. Ndb5+ {[%emt 0:00:30]} 1-0